bitfinex-derivatives/quotes_BTCF0:USTF0_20250212
["timestamp","ask_amount","ask_price","bid_price","bid_amount"]
[1739372918255,0.3608,95052.0,95044.0,0.00147592]
[1739372918554,0.3608,95052.0,95033.0,0.30831703]
[1739372918949,0.3608,95034.0,95030.0,0.05139096]
[1739372919151,0.3608,95040.0,95025.0,0.3608]
[1739372919859,0.3608,95040.0,95025.0,0.4508]
[1739372920151,0.3608,95040.0,95025.0,0.41288558]
[1739372920549,0.3608,95026.0,95023.0,0.00015782]
[1739372920948,0.3608,95024.0,95023.0,0.00015782]
[1739372921356,0.3608,95034.0,95003.0,0.01566197]
[1739372921658,0.3608,95020.0,95003.0,0.01566197]
[1739372921848,0.3608,95012.0,95002.0,0.31262785]
[1739372922359,0.3608,95012.0,94997.0,0.0158]
[1739372922655,0.2105221,95007.0,94997.0,0.00015782]
[1739372922855,0.3608,95004.0,94997.0,0.05327601]
[1739372923561,0.3608,95004.0,94997.0,0.12327601]
[1739372924151,0.3608,95012.0,94997.0,0.12327601]
[1739372924353,0.00015782,95017.0,95000.0,0.30831703]
[1739372924669,0.3608,95013.0,95000.0,0.34500897]
[1739372924965,0.00015782,95017.0,95000.0,0.34500897]
[1739372925555,0.00015782,95017.0,94999.0,0.5720982]
[1739372925556,0.2105098,95013.0,94999.0,0.00076]
[1739372925759,0.3608,95004.0,94997.0,0.05327601]
[1739372926155,0.3608,95016.0,94997.0,0.05327601]
[1739372926156,0.3608,95007.0,94997.0,0.05327601]
[1739372926358,0.00015782,95017.0,95006.0,0.3608]
[1739372927057,0.00015782,95017.0,94997.0,0.26381861]
[1739372927253,0.3608,95009.0,94997.0,0.05327601]
[1739372927559,0.3608,95012.0,94997.0,0.15]
[1739372927755,0.3608,95003.0,94988.0,0.0158]
[1739372927958,0.3608,94995.0,94987.0,0.0158]
[1739372928265,0.3608,94995.0,94987.0,0.05296038]
[1739372928449,0.3608,94995.0,94984.0,0.0158]
[1739372928759,0.2105513,94994.0,94983.0,0.3608]
[1739372928954,0.3608,94984.0,94983.0,0.05145863]
[1739372929156,0.3608,94984.0,94982.0,0.00026563]
[1739372930464,0.00060001,95027.0,94983.0,0.3608]
[1739372930667,0.3608,95034.0,95007.0,0.3608]
[1739372930956,0.3608,95033.0,95018.0,0.3608]
[1739372931357,0.3608,95023.0,95007.0,0.3608]
[1739372931558,0.2104956,95019.0,95007.0,0.3608]
[1739372931761,0.2104988,95018.0,95007.0,0.3608]
[1739372932266,0.00010773,95022.0,95005.0,0.0001579]
[1739372932471,0.3608,95007.0,95005.0,0.0001579]
[1739372932767,0.3608,95007.0,94982.0,0.2105765]
[1739372932768,0.2105339,95002.0,94989.0,0.3608]
[1739372933455,0.2105378,95000.0,94989.0,0.30831703]
[1739372933655,0.2105378,95000.0,94970.0,0.32500897]
[1739372933656,0.3608,94993.0,94979.0,0.3608]
[1739372933865,0.3608,94993.0,94979.0,0.41447903]
[1739372934066,0.210537,95001.0,94989.0,0.3608]
[1739372934263,0.0001579,95004.0,94989.0,0.3608]
[1739372934464,0.0001579,95004.0,94985.0,0.0001579]
[1739372934861,0.2105344,95002.0,94987.0,0.3608]
[1739372935053,0.2105362,95001.0,94987.0,0.3608]
[1739372935560,0.0001579,95004.0,94987.0,0.3608]
[1739372935760,0.2105393,95000.0,94987.0,0.3608]
[1739372935961,0.0001579,95004.0,94987.0,0.3608]
[1739372936165,0.2105344,95002.0,94987.0,0.3608]
[1739372936561,0.0001579,95004.0,94999.0,0.3608]
[1739372937668,0.210463,95034.0,95011.0,0.2105113]
[1739372937867,0.210463,95034.0,95030.0,0.3608]
[1739372938164,0.210463,95034.0,95021.0,0.3608]
[1739372938354,0.210463,95034.0,95030.0,0.3608]
[1739372938764,0.210463,95034.0,95022.0,0.0001579]
[1739372939068,0.0001579,95042.0,95022.0,0.0001579]
[1739372939069,0.2104856,95024.0,95022.0,0.0001579]
[1739372939663,0.2104856,95024.0,95002.0,0.15820613]
[1739372939868,0.3608,95027.0,95010.0,0.3608]
[1739372940066,0.3608,95027.0,95010.0,0.68580897]
[1739372940367,0.3608,95027.0,95017.0,0.2104995]
[1739372940571,0.3608,95027.0,95010.0,0.69580897]
[1739372940572,0.2104798,95026.0,95010.0,0.36148]
[1739372940871,0.2104798,95026.0,95012.0,0.0001579]
[1739372941069,0.210483,95025.0,95012.0,0.0001579]
[1739372941275,0.0001579,95032.0,95021.0,0.3608]
[1739372941673,0.0001579,95032.0,95030.0,0.3608]
[1739372942562,0.0001579,95032.0,95030.0,0.30831703]
[1739372943260,0.0001579,95032.0,95030.0,0.36144043]
[1739372943565,0.7216,95031.0,95002.0,0.3608]
[1739372943764,0.3608,95016.0,95002.0,0.3608]
[1739372943969,0.0001579,95032.0,95012.0,0.0601579]
[1739372944171,0.0001579,95032.0,95026.0,0.3608]
[1739372944373,0.0001579,95032.0,95026.0,0.4108]
[1739372944573,0.0001579,95032.0,95026.0,0.7716]
[1739372944970,0.2104149,95056.0,95026.0,0.9820795]
[1739372945173,0.2104149,95056.0,95043.0,0.3608]
[1739372945565,0.3608,95057.0,95043.0,0.5908]
[1739372945766,0.05162693,95072.0,95043.0,0.5908]
[1739372945767,0.3608,95064.0,95043.0,0.53831703]
[1739372945967,0.3608,95057.0,95043.0,0.30831703]
[1739372946473,0.3608,95048.0,95044.0,0.00015781]
[1739372947069,0.6608,95048.0,95016.0,0.0158]
[1739372947271,0.6608,95048.0,95015.0,0.31168194]
[1739372947272,0.2105019,95016.0,95015.0,0.31168194]
[1739372947464,0.2105173,95010.0,95007.0,0.37012591]
[1739372947779,0.3608,95008.0,95007.0,0.37012591]
[1739372948169,0.5713196,95008.0,95007.0,0.37012591]
[1739372948794,0.5713196,95008.0,95007.0,0.31764294]
[1739372949073,0.36095781,95017.0,95007.0,0.31764294]
[1739372949373,0.00015781,95017.0,95007.0,0.31764294]
[1739372949574,0.00015781,95017.0,95006.0,0.3608]
[1739372950077,0.00015781,95017.0,94998.0,0.18754608]
[1739372950078,0.3608,95013.0,94998.0,0.18754608]
[1739372950477,0.210511,95012.0,94998.0,0.18754608]
[1739372951077,0.3608,95013.0,94998.0,0.18754608]
[1739372951078,0.3608,95005.0,94998.0,0.18754608]
[1739372951776,0.3608,95005.0,94998.0,0.13506311]
[1739372952273,0.3608,95005.0,94993.0,0.05242136]
[1739372952478,0.3608,95005.0,94982.0,0.0158]
[1739372952671,0.3608,95005.0,94990.0,0.32500897]
[1739372952871,4.897e-05,95008.0,94996.0,0.3608]
[1739372954085,4.897e-05,95008.0,94986.0,0.3608]
[1739372954086,0.3608,95003.0,94986.0,0.3608]
[1739372954473,0.2105348,95002.0,94986.0,0.3608]
[1739372954776,0.3608,95003.0,94986.0,0.3608]
[1739372954777,0.3608,95003.0,94986.0,0.30831703]
[1739372956477,0.3608,94992.0,94982.0,0.06715556]
[1739372956675,0.2105343,95002.0,94982.0,0.06715556]
[1739372957083,0.00015791,95001.0,94982.0,0.06715556]
[1739372957278,0.00015791,95001.0,94982.0,0.05135556]
[1739372957482,0.00015791,95001.0,94981.0,0.0158]
[1739372957782,0.00015791,95001.0,94983.0,0.30831703]
[1739372959490,0.00015791,95001.0,94991.0,0.3608]
[1739372959673,4.897e-05,95008.0,95000.0,0.2105367]
[1739372959980,4.897e-05,95008.0,95002.0,0.3608]
[1739372960183,0.3608,95035.0,95007.0,0.3608]
[1739372960378,0.3608,95035.0,95019.0,0.3608]
[1739372960584,0.3608,95035.0,95010.0,0.21055206]
[1739372960781,0.3608,95035.0,95028.0,0.30831703]
[1739372961088,0.00015791,95032.0,95028.0,0.30831703]
[1739372961478,0.58670001,95046.0,95030.0,0.2104697]
[1739372961479,0.3608,95046.0,95030.0,0.2104697]
[1739372961682,0.3608,95046.0,95039.0,0.3608]
[1739372962376,0.3608,95046.0,95030.0,0.05275326]
[1739372962578,0.3608,95046.0,95031.0,0.3608]
[1739372962880,0.3608,95046.0,95031.0,0.4208]
[1739372963483,0.3608,95046.0,95039.0,0.3608]
[1739372963688,0.3608,95046.0,95028.0,0.00015791]
[1739372963883,0.3608,95038.0,95022.0,0.32847494]
[1739372964383,0.3608,95038.0,95020.0,0.05190062]
[1739372964384,0.3608,95029.0,95020.0,0.05190062]
[1739372964586,0.3608,95029.0,95011.0,0.3608]
[1739372965175,0.3608,95047.0,95011.0,0.3608]
[1739372965474,0.3608,95047.0,95011.0,0.41329536]
[1739372965475,0.3608,95039.0,95011.0,0.41329536]
[1739372965678,0.3608,95031.0,95011.0,0.41329536]
[1739372966078,0.3608,95031.0,95020.0,0.3608]
[1739372966275,0.00015791,95048.0,95030.0,0.3608]
[1739372966889,0.00015791,95048.0,95030.0,0.30831703]
[1739372967186,0.00015791,95048.0,95030.0,0.63264124]
[1739372967381,0.2103874,95068.0,95047.0,0.3608]
[1739372967576,0.3608,95069.0,95047.0,0.3608]
[1739372967781,0.3608,95069.0,95030.0,0.3608]
[1739372967782,0.3608,95061.0,95030.0,0.3608]
[1739372967984,0.3608,95061.0,95042.0,0.3608]
[1739372968183,0.32432421,95060.0,95042.0,0.3608]
[1739372968382,0.3608,95048.0,95030.0,0.3608]
[1739372968583,0.3608,95048.0,95041.0,0.00015782]
[1739372968779,0.2104442,95042.0,95041.0,0.00015782]
[1739372969186,0.5712442,95042.0,95041.0,0.00015782]
[1739372969393,0.3608,95042.0,94999.0,0.3608]
[1739372969693,0.2105014,95017.0,94999.0,0.3608]
[1739372969890,0.3608,95018.0,95003.0,0.15611703]
[1739372970096,0.3608,95018.0,95003.0,0.20783496]
[1739372970690,0.00015782,95020.0,95003.0,0.20783496]
[1739372971584,0.00015782,95020.0,95010.0,0.32432421]
[1739372971780,0.00015782,95020.0,95010.0,0.1]
[1739372971991,0.3608,95054.0,95019.0,0.3608]
[1739372972194,0.2104289,95049.0,95039.0,0.3608]
[1739372972392,0.26332285,95059.0,95039.0,0.3608]
[1739372972393,0.2104225,95052.0,95039.0,0.3608]
[1739372972587,0.211,95059.0,95049.0,0.3608]
[1739372972588,0.2104072,95059.0,95049.0,0.3608]
[1739372972891,0.2103803,95071.0,95057.0,0.3608]
[1739372973089,0.05345378,95072.0,95055.0,0.3608]
[1739372973293,0.05345378,95072.0,95064.0,0.3608]
[1739372973791,0.1885048,95074.0,95064.0,0.3608]
[1739372974683,0.015,95072.0,95064.0,0.3618]
[1739372975279,0.1885048,95074.0,95064.0,0.3618]
[1739372975280,0.1885048,95074.0,95064.0,0.41436951]
[1739372975488,0.2035048,95074.0,95064.0,0.41536951]
[1739372975989,0.01515782,95074.0,95064.0,0.36288654]
[1739372976188,0.01515782,95074.0,95064.0,0.001]
[1739372976593,0.5711933,95065.0,95064.0,0.001]
[1739372976903,0.2103933,95065.0,95064.0,0.001]
[1739372977488,0.3608,95068.0,95064.0,0.001]
[1739372977797,0.00015782,95074.0,95054.0,0.00015782]
[1739372977998,0.015,95065.0,95064.0,0.001]
[1739372978697,0.015,95068.0,95064.0,0.001]
[1739372978894,0.015,95068.0,95067.0,0.3608]
[1739372979091,0.015,95068.0,95067.0,0.30831703]
[1739372979791,0.015,95068.0,95064.0,0.05250891]
[1739372980001,0.2103889,95067.0,95064.0,0.001]
[1739372980196,0.2103889,95067.0,95059.0,0.05361282]
[1739372980401,0.3608,95069.0,95054.0,0.00015782]
[1739372980402,0.015,95065.0,95064.0,0.001]
[1739372981096,0.2103922,95066.0,95064.0,0.001]
[1739372981292,0.3608,95065.0,95064.0,0.001]
[1739372982097,0.3608,95065.0,95051.0,0.00043097]
[1739372982098,0.5711946,95065.0,95051.0,0.00043097]
[1739372982288,0.5711946,95065.0,95045.0,0.3608]
[1739372982900,0.2104003,95062.0,95045.0,0.3608]
[1739372983089,0.3608,95065.0,95045.0,0.3608]
[1739372983297,0.015,95067.0,95050.0,0.32432421]
[1739372983601,0.015,95065.0,95064.0,0.001]
[1739372984190,0.36136001,95070.0,95056.0,0.3608]
[1739372984394,0.013,95065.0,95056.0,0.3608]
[1739372985093,0.015,95065.0,95064.0,0.001]
[1739372986798,0.2094153,95056.0,95054.0,0.05170807]
[1739372987006,0.3608,95058.0,95045.0,0.3608]
[1739372987304,0.2104167,95055.0,95045.0,0.3608]
[1739372987497,0.3608,95058.0,95045.0,0.3608]
[1739372987698,0.2104252,95051.0,95045.0,0.3608]
[1739372988094,0.3608,95046.0,95042.0,3.56e-06]
[1739372988299,0.3608,95046.0,95040.0,7.921e-05]
[1739372988300,0.2104464,95041.0,95040.0,7.921e-05]
[1739372990199,0.2084464,95041.0,95040.0,7.921e-05]
[1739372990805,0.2124464,95041.0,95040.0,7.921e-05]
[1739372991303,0.2104496,95040.0,95021.0,0.42521931]
[1739372991696,0.013,95041.0,95021.0,0.21473041]
[1739372991903,0.2104533,95038.0,95021.0,0.21473041]
[1739372992200,9.089e-05,95037.0,95022.0,0.3608]
[1739372992894,0.21054699,95037.0,95022.0,0.3608]
[1739372993098,0.3608,95032.0,95021.0,0.26816892]
[1739372993297,0.2104875,95023.0,95021.0,0.26816892]
[1739372994002,0.2104875,95023.0,95021.0,0.05343851]
[1739372994197,0.3608,95024.0,95014.0,0.15831703]
[1739372994506,0.2104961,95019.0,95014.0,0.15831703]
[1739372995101,0.2104961,95019.0,95005.0,0.2061]
[1739372995299,0.2104979,95018.0,95005.0,0.2061]
[1739372996297,0.3608,95024.0,95005.0,0.2061]
[1739372996498,0.3608,95024.0,95014.0,0.002]
[1739372996909,0.3608,95024.0,95014.0,0.172]
[1739372997107,0.3608,95024.0,95014.0,0.17]
[1739372997407,0.2104895,95022.0,95005.0,0.26160595]
[1739372997912,0.3608,95024.0,95005.0,0.26160595]
[1739372998215,0.3608,95006.0,95005.0,0.26160595]
[1739372999000,0.2105105,95013.0,95005.0,0.26160595]
[1739372999207,0.00010708,95012.0,95005.0,0.26160595]
[1739372999396,0.2105153,95010.0,95005.0,0.05550595]
[1739372999910,0.00010708,95012.0,95005.0,0.05550595]
[1739373000306,0.00010708,95012.0,95005.0,0.00302298]
[1739373000613,0.3608,95043.0,95010.0,0.3608]
[1739373000802,0.3608,95048.0,95025.0,0.2104816]
[1739373001112,0.3608,95048.0,95026.0,0.2264]
[1739373001313,0.2104332,95047.0,95026.0,0.2264]
[1739373001698,0.3608,95048.0,95026.0,0.2264]
[1739373001900,0.3608,95057.0,95042.0,0.3608]
[1739373002102,0.54970699,95073.0,95052.0,0.3608]
[1739373002302,0.54914698,95073.0,95052.0,0.3908]
[1739373002613,0.3608,95064.0,95043.0,0.2133]
[1739373002910,0.3608,95064.0,95033.0,0.3608]
[1739373002911,0.2104029,95061.0,95033.0,0.3608]
[1739373003104,0.3608,95064.0,95033.0,0.3608]
[1739373003105,0.3608,95051.0,95033.0,0.3608]
[1739373003297,0.3608,95051.0,95026.0,0.22661186]
[1739373003298,0.3608,95038.0,95026.0,0.22661186]
[1739373003500,0.3608,95043.0,95026.0,0.22661186]
[1739373003900,0.3608,95043.0,95026.0,0.22561186]
[1739373004103,0.3608,95043.0,95026.0,0.30561186]
[1739373004304,0.3608,95043.0,95030.0,0.32445642]
[1739373004505,0.3608,95043.0,95030.0,0.35445642]
[1739373004711,0.3608,95054.0,95030.0,0.35445642]
[1739373004907,0.007,95043.0,95030.0,0.71525642]
[1739373005305,0.007,95043.0,95030.0,0.3608]
[1739373006313,0.3608,95038.0,95026.0,0.05253701]
[1739373006502,0.3608,95038.0,95025.0,0.00015782]
[1739373006503,0.3608,95027.0,95025.0,0.00015782]
[1739373006698,0.3608,95027.0,95002.0,0.3766]
[1739373006699,0.2105125,95012.0,95003.0,0.0533998]
[1739373006900,0.5713182,95009.0,95002.0,0.3608]
[1739373007205,0.5713182,95009.0,94992.0,0.0158]
[1739373007405,0.3608,95009.0,95000.0,0.05335396]
[1739373007613,0.3608,95009.0,95000.0,8.572e-05]
[1739373007804,0.3608,95011.0,95000.0,8.572e-05]
[1739373008012,0.3608,95001.0,95000.0,8.572e-05]
[1739373008512,0.3608,95002.0,95000.0,8.572e-05]
[1739373009501,0.3608,95002.0,95000.0,0.002]
[1739373010317,0.3608,95002.0,94990.0,0.21060337]
[1739373010608,7.626e-05,95001.0,95000.0,0.002]
[1739373011316,7.626e-05,95001.0,94999.0,0.3608]
[1739373011518,7.626e-05,95001.0,94996.0,0.3608]
[1739373011812,7.626e-05,95001.0,94990.0,0.002]
[1739373012111,0.5713427,94998.0,94990.0,0.002]
[1739373012507,7.626e-05,95001.0,94988.0,0.0033561]
[1739373012717,7.626e-05,95001.0,94983.0,0.0158]
[1739373012910,0.3608,94998.0,94983.0,0.0158]
[1739373013109,0.2105456,94997.0,94983.0,0.06719294]
[1739373013416,0.2105456,94997.0,94983.0,0.0158]
[1739373013809,0.2105456,94997.0,94983.0,0.0178]
[1739373014306,0.210547,94996.0,94983.0,0.0178]
[1739373014508,0.3588,94998.0,94983.0,0.002]
[1739373014908,0.3608,94999.0,94983.0,0.002]
[1739373015310,0.3608,94991.0,94983.0,0.002]
[1739373015508,7.626e-05,95001.0,94981.0,0.0158]
[1739373015712,7.626e-05,95001.0,94990.0,0.21060337]
[1739373016309,0.3608,95000.0,94981.0,0.0158]
[1739373016906,0.3608,95000.0,94990.0,0.001]
[1739373017707,0.00607626,95001.0,94990.0,0.001]
[1739373018012,0.36687626,95001.0,94990.0,0.001]
[1739373018212,0.2105491,94995.0,94990.0,0.001]
[1739373018510,0.3608,94991.0,94956.0,0.0158]
[1739373018717,0.3608,94976.0,94956.0,0.07842359]
[1739373018917,0.3608,94976.0,94956.0,0.0258]
[1739373019115,0.0001579,94975.0,94956.0,0.01]
[1739373019310,0.2105994,94972.0,94956.0,0.0158]
[1739373019517,0.2106048,94970.0,94956.0,0.0158]
[1739373019910,0.2106048,94970.0,94955.0,0.3608]
[1739373019911,0.3608,94965.0,94955.0,0.05295518]
[1739373020120,0.3608,94965.0,94947.0,0.0158]
[1739373020312,0.2183,94964.0,94947.0,0.06930258]
[1739373020519,0.3608,94957.0,94947.0,0.06930258]
[1739373021717,0.3608,94957.0,94946.0,0.0158]
[1739373021921,0.3608,94957.0,94947.0,0.21060337]
[1739373022417,0.3608,94957.0,94946.0,0.0158]
[1739373022625,0.3608,94948.0,94936.0,0.3608]
[1739373022809,0.3608,94948.0,94929.0,0.0158]
[1739373022810,0.3608,94938.0,94932.0,0.0158]
[1739373023009,0.3608,94938.0,94929.0,0.0158]
[1739373023518,0.57154956,94938.0,94921.0,0.05196028]
[1739373023720,0.36087496,94938.0,94920.0,0.21060337]
[1739373024827,0.36087496,94938.0,94920.0,0.1580774]
[1739373025013,0.36087496,94938.0,94919.0,0.41412406]
[1739373025626,0.36087496,94938.0,94920.0,0.21060337]
[1739373026029,0.36087496,94938.0,94920.0,0.25060337]
[1739373027118,0.36087496,94938.0,94920.0,0.04]
[1739373027324,0.36087496,94938.0,94928.0,0.21060337]
[1739373027530,0.36087496,94938.0,94928.0,0.25060337]
[1739373027720,7.496e-05,94938.0,94937.0,0.30827403]
[1739373028026,7.496e-05,94938.0,94937.0,0.49827403]
[1739373029018,0.00107496,94938.0,94937.0,0.49827403]
[1739373029217,0.00015799,94947.0,94937.0,0.49827403]
[1739373029430,0.3608,94972.0,94946.0,0.3608]
[1739373029628,0.3608,94969.0,94954.0,0.3608]
[1739373029830,0.3608,94960.0,94945.0,0.3608]
[1739373030330,0.3608,94948.0,94937.0,0.001]
[1739373030530,0.3608,94938.0,94937.0,0.001]
[1739373030832,0.3598,94938.0,94923.0,0.30927403]
[1739373031132,0.3598,94938.0,94928.0,0.21076136]
[1739373032131,0.3608,94930.0,94928.0,0.21076136]
[1739373032326,0.00015799,94940.0,94928.0,0.00015799]
[1739373032625,0.00015799,94940.0,94937.0,0.001]
[1739373032831,0.16633362,94943.0,94937.0,0.001]
[1739373033127,0.16633362,94943.0,94928.0,0.00015799]
[1739373033333,0.005,94930.0,94928.0,0.00115799]
[1739373033929,0.005,94930.0,94923.0,0.31069209]
[1739373034137,7.745e-05,94942.0,94937.0,0.001]
[1739373034632,7.745e-05,94942.0,94938.0,0.0158]
[1739373035924,0.26316831,94970.0,94941.0,0.3608]
[1739373036129,0.5714179,94964.0,94941.0,0.3608]
[1739373036531,0.014,94942.0,94941.0,0.3608]
[1739373036832,0.01405157,94942.0,94938.0,0.01636517]
[1739373037032,0.01405157,94942.0,94938.0,0.001]
[1739373039132,0.3608,94939.0,94938.0,0.001]
[1739373039335,0.3598,94939.0,94931.0,0.00015799]
[1739373039836,0.3598,94939.0,94922.0,0.01584]
[1739373040025,0.3598,94939.0,94938.0,0.001]
[1739373040533,0.3598,94939.0,94921.0,0.05310501]
[1739373040534,0.2106873,94933.0,94921.0,0.05310501]
[1739373040831,0.3598,94931.0,94913.0,0.01584]
[1739373041031,0.2107062,94924.0,94918.0,0.0002629]
[1739373041229,0.3598,94931.0,94918.0,0.0002629]
[1739373041440,0.3608,94919.0,94918.0,0.0002629]
[1739373041735,0.2107496,94905.0,94900.0,0.1]
[1739373041930,0.3608,94901.0,94900.0,0.1]
[1739373042533,0.36091449,94901.0,94900.0,0.1]
[1739373042936,0.36091449,94901.0,94900.0,0.04747403]
[1739373043130,0.36191449,94901.0,94900.0,0.04747403]
[1739373044237,0.72271449,94901.0,94867.0,0.3608]
[1739373044430,0.3608,94881.0,94869.0,0.01584]
[1739373044625,0.3608,94872.0,94867.0,0.05337354]
[1739373044830,0.3608,94872.0,94861.0,0.01584]
[1739373045033,0.3608,94872.0,94854.0,0.77916]
[1739373045034,0.3608,94863.0,94854.0,0.77916]
[1739373045232,0.5716414,94863.0,94858.0,1e-08]
[1739373045430,0.3608,94863.0,94858.0,1e-08]
[1739373045641,0.2108465,94861.0,94858.0,1e-08]
[1739373045834,0.3608,94859.0,94858.0,1e-08]
[1739373046034,0.42147427,94850.0,94822.0,0.01584]
[1739373046234,0.42147427,94850.0,94823.0,0.831521]
[1739373046235,0.3608,94838.0,94823.0,0.831521]
[1739373046538,0.3608,94838.0,94828.0,0.21060337]
[1739373046941,8.826e-05,94837.0,94828.0,0.21060337]
[1739373047134,0.00015817,94840.0,94836.0,0.3608]
[1739373047434,0.3608,94888.0,94857.0,0.21060337]
[1739373047636,0.00064,94880.0,94878.0,0.21060337]
[1739373047841,0.585,94900.0,94870.0,0.21060337]
[1739373048039,0.58560001,94900.0,94871.0,0.3608]
[1739373048239,0.3608,94881.0,94858.0,0.11952632]
[1739373048544,0.3608,94881.0,94876.0,0.00015808]
[1739373048936,0.3608,94881.0,94864.0,0.30827403]
[1739373049244,0.3608,94881.0,94869.0,0.00015808]
[1739373049640,0.3748,94881.0,94869.0,0.00015808]
[1739373049836,0.3748,94881.0,94870.0,0.21060337]
[1739373050342,0.3718,94881.0,94871.0,0.2303]
[1739373050840,0.3718,94881.0,94879.0,0.3608]
[1739373050841,0.011,94881.0,94879.0,0.3608]
[1739373051045,0.00015808,94888.0,94880.0,0.09908]
[1739373051243,0.00015808,94888.0,94880.0,0.12058148]
[1739373051544,0.3608,94883.0,94880.0,0.12058148]
[1739373051729,0.3608,94883.0,94862.0,0.01584]
[1739373051936,0.3608,94883.0,94870.0,0.1580774]
[1739373052239,0.3608,94883.0,94862.0,0.01584]
[1739373052839,0.012,94881.0,94870.0,0.21160337]
[1739373053440,0.012,94881.0,94862.0,0.0675477]
[1739373053647,0.3718,94883.0,94869.0,0.00115808]
[1739373054833,0.3718,94883.0,94870.0,0.01584]
[1739373055038,0.3718,94883.0,94869.0,0.01584]
[1739373055340,0.009,94881.0,94870.0,0.001]
[1739373056039,0.3608,94883.0,94869.0,0.01584]
[1739373056239,0.3618,94883.0,94869.0,0.01584]
[1739373056743,0.3608,94883.0,94869.0,0.01584]
[1739373057144,0.21060337,94880.0,94863.0,0.3614]
[1739373057448,0.2108068,94879.0,94864.0,0.01584]
[1739373058037,0.2108068,94879.0,94863.0,0.32411403]
[1739373058237,0.2259,94882.0,94869.0,0.21060337]
[1739373058545,0.3608,94883.0,94869.0,0.21060337]
[1739373058745,0.3608,94883.0,94863.0,0.32411403]
[1739373059046,0.3608,94883.0,94869.0,0.001]
[1739373059250,0.3608,94883.0,94870.0,0.09792]
[1739373059433,0.3608,94883.0,94870.0,0.30852337]
[1739373059641,0.3608,94883.0,94871.0,0.5699]
[1739373059849,0.005,94883.0,94871.0,0.957]
[1739373060040,0.005,94883.0,94873.0,0.2108175]
[1739373060350,0.005,94883.0,94873.0,0.05]
[1739373060543,0.006,94883.0,94873.0,0.05]
[1739373060740,0.006,94883.0,94877.0,0.21081]
[1739373060936,0.006,94883.0,94877.0,0.22081]
[1739373061236,0.006,94883.0,94874.0,0.77892]
[1739373061648,0.3608,94882.0,94874.0,0.77892]
[1739373062552,0.3608,94881.0,94873.0,0.001]
[1739373062849,0.2108167,94874.0,94846.0,0.10176]
[1739373063046,0.3598,94866.0,94844.0,0.3608]
[1739373063256,0.80227238,94881.0,94861.0,0.07584]
[1739373063257,0.59267238,94881.0,94861.0,0.07584]
[1739373063550,0.59203238,94881.0,94862.0,0.3608]
[1739373063750,0.60003238,94881.0,94873.0,0.001]
[1739373064143,0.60003238,94881.0,94862.0,0.30927403]
[1739373065146,0.00813238,94881.0,94870.0,0.21060337]
[1739373065352,0.00813238,94881.0,94871.0,0.2185]
[1739373065758,0.00013238,94881.0,94871.0,0.2185]
[1739373066447,0.00013238,94881.0,94871.0,0.2885]
[1739373066651,0.00713238,94881.0,94871.0,0.2195]
[1739373067356,0.00713238,94881.0,94871.0,0.27853831]
[1739373067550,0.00713238,94881.0,94871.0,0.63933831]
[1739373067951,0.00713238,94881.0,94871.0,0.57933831]
[1739373068344,0.3608,94878.0,94871.0,0.21853831]
[1739373068661,0.3608,94878.0,94871.0,0.001]
[1739373069352,0.2108138,94876.0,94862.0,0.3608]
[1739373069750,0.3658,94878.0,94862.0,0.3608]
[1739373069948,0.3658,94878.0,94862.0,0.41354985]
[1739373070156,0.3658,94878.0,94868.0,0.1580774]
[1739373070352,0.3658,94878.0,94863.0,0.2284]
[1739373070560,0.3658,94878.0,94858.0,0.10164]
[1739373070561,0.3608,94869.0,94858.0,0.10164]
[1739373070852,0.3608,94868.0,94843.0,0.3608]
[1739373071054,0.3608,94852.0,94844.0,0.11748]
[1739373071656,0.00010695,94851.0,94844.0,0.01584]
[1739373072463,0.00010695,94851.0,94835.0,0.37664]
[1739373072464,0.00010695,94851.0,94835.0,0.01584]
[1739373072759,0.3608,94838.0,94825.0,0.01584]
[1739373072960,0.3608,94838.0,94834.0,0.01742176]
[1739373073154,0.3608,94838.0,94834.0,0.00158176]
[1739373073352,0.3608,94838.0,94823.0,0.01584]
[1739373074461,0.3608,94838.0,94805.0,0.21255124]
[1739373074462,0.3608,94824.0,94809.0,0.00064]
[1739373074651,0.3608,94824.0,94780.0,0.57140337]
[1739373074652,0.3608,94810.0,94802.0,0.05328832]
[1739373074855,0.3608,94806.0,94802.0,9.586e-05]
[1739373075864,9.246e-05,94805.0,94802.0,9.586e-05]
[1739373076370,9.246e-05,94805.0,94800.0,0.02676692]
[1739373077273,9.246e-05,94805.0,94800.0,0.38756692]
[1739373077873,9.246e-05,94805.0,94800.0,0.07878355]
[1739373078070,0.01209246,94805.0,94802.0,0.001]
[1739373078273,0.18834698,94819.0,94802.0,0.001]
[1739373078274,0.18834698,94819.0,94802.0,0.091]
[1739373078480,0.18834698,94819.0,94812.0,0.3608]
[1739373078775,0.18834698,94819.0,94805.0,0.21060337]
[1739373079169,0.18834698,94819.0,94808.0,0.3608]
[1739373079368,0.0001312,94814.0,94808.0,0.30827403]
[1739373079573,0.3608,94826.0,94808.0,0.39827403]
[1739373079776,0.3608,94826.0,94808.0,0.30827403]
[1739373080174,0.3608,94818.0,94808.0,0.30827403]
[1739373080370,0.3608,94818.0,94802.0,0.001]
[1739373080577,6.335e-05,94817.0,94802.0,0.001]
[1739373081869,6.335e-05,94817.0,94801.0,0.00015817]
[1739373081870,0.013,94815.0,94808.0,0.001]
[1739373082477,0.013,94815.0,94800.0,0.65074692]
[1739373082478,0.013,94815.0,94800.0,0.59881912]
[1739373082681,0.01006335,94817.0,94802.0,0.001]
[1739373083477,0.013,94815.0,94808.0,0.001]
[1739373083672,0.3608,94809.0,94808.0,0.001]
[1739373084673,0.2109695,94806.0,94782.0,0.10676]
[1739373084984,0.3608,94797.0,94787.0,0.05353486]
[1739373085185,0.3598,94797.0,94780.0,0.21060337]
[1739373085482,0.3598,94797.0,94786.0,0.01584]
[1739373086079,0.3598,94797.0,94787.0,0.21060337]
[1739373087376,0.00015817,94801.0,94788.0,0.11424901]
[1739373087585,0.00015817,94801.0,94789.0,0.3608]
[1739373087882,0.00015817,94801.0,94789.0,0.3908]